[Event "*** Titled Tuesday 3|2 Blitz"]
[Site "Chess.com"]
[Date "2015.07.07"]
[Round "8"]
[White "zmaj23"]
[Black "jbj"]
[Result "1-0"]
[WhiteElo "2459"]
[BlackElo "2284"]
[TimeControl "180+2"]
[EndTime "12:39:38 PDT"]
[Termination "zmaj23 won by checkmate"]

1. e4 {[%clk 0:03:01.9]} 1... d6 {[%clk 0:02:59.5]} 2. Nc3 {[%clk 0:03:02.3]}
2... Nf6 {[%clk 0:03:00.7]} 3. d4 {[%clk 0:03:02.9]} 3... e5 {[%clk 0:03:01.6]}
4. Nf3 {[%clk 0:03:02]} 4... Nbd7 {[%clk 0:03:02.5]} 5. Rg1 {[%clk 0:03:02.8]}
5... exd4 {[%clk 0:02:55.3]} 6. Nxd4 {[%clk 0:03:01.6]} 6... Nc5 {[%clk
0:02:55.2]} 7. f3 {[%clk 0:03:00.2]} 7... h5 {[%clk 0:02:52.7]} 8. Be3 {[%clk
0:02:58.4]} 8... a5 {[%clk 0:02:45.9]} 9. Qd2 {[%clk 0:02:54.5]} 9... c6 {[%clk
0:02:45.1]} 10. a4 {[%clk 0:02:55.1]} 10... Qc7 {[%clk 0:02:40.7]} 11. Bc4
{[%clk 0:02:53.5]} 11... Be7 {[%clk 0:02:27.4]} 12. O-O-O {[%clk 0:02:52.5]}
12... Bd7 {[%clk 0:02:11.1]} 13. Kb1 {[%clk 0:02:52.8]} 13... g6 {[%clk
0:02:07.7]} 14. h3 {[%clk 0:02:51.9]} 14... Ne6 {[%clk 0:02:02.1]} 15. g4 {[%clk
0:02:50.3]} 15... hxg4 {[%clk 0:02:02.5]} 16. hxg4 {[%clk 0:02:49.9]} 16...
O-O-O {[%clk 0:01:55.3]} 17. g5 {[%clk 0:02:48.8]} 17... Nh5 {[%clk 0:01:53.4]}
18. Nb3 {[%clk 0:02:49.7]} 18... b6 {[%clk 0:01:45.2]} 19. Qf2 {[%clk
0:02:47.2]} 19... Kb7 {[%clk 0:01:42.2]} 20. f4 {[%clk 0:02:48.7]} 20... Rdf8
{[%clk 0:01:31.9]} 21. f5 {[%clk 0:02:49.8]} 21... Nc5 {[%clk 0:01:32]} 22. f6
{[%clk 0:02:48]} 22... Bd8 {[%clk 0:01:26.4]} 23. e5 {[%clk 0:02:47]} 23... Nxb3
{[%clk 0:01:03.7]} 24. exd6 {[%clk 0:02:46]} 24... Qc8 {[%clk 0:01:02.2]} 25.
Bxb3 {[%clk 0:02:42.3]} 25... Be6 {[%clk 0:01:02.8]} 26. Bxe6 {[%clk 0:02:31.8]}
26... Qxe6 {[%clk 0:01:04.7]} 27. d7 {[%clk 0:01:59.4]} 27... Bc7 {[%clk
0:01:04.1]} 28. Rge1 {[%clk 0:01:57]} 28... Bg3 {[%clk 0:00:59.2]} 29. Qg1
{[%clk 0:01:54.3]} 29... Bxe1 {[%clk 0:00:58.5]} 30. Bxb6 {[%clk 0:01:53.3]}
30... Bxc3 {[%clk 0:00:55.4]} 31. bxc3 {[%clk 0:01:45.9]} 31... Rd8 {[%clk
0:00:50.2]} 32. Bc7 {[%clk 0:01:41]} 32... Ka8 {[%clk 0:00:35.9]} 33. Qb6 {[%clk
0:01:37.1]} 33... Qc4 {[%clk 0:00:16.5]} 34. Bxd8 {[%clk 0:01:33.6]} 34... Nf4
{[%clk 0:00:16.9]} 35. Bc7 {[%clk 0:01:24.2]} 35... Nd5 {[%clk 0:00:17.3]} 36.
Rxd5 {[%clk 0:01:21.1]} 36... Qxd5 {[%clk 0:00:05.2]} 37. Qa6# {[%clk
0:01:19.9]} 1-0

[Event "*** Titled Tuesday 3|2 Blitz"]
[Site "Chess.com"]
[Date "2015.07.07"]
[Round "8"]
[White "HansCoolNiemann"]
[Black "nijat_a"]
[Result "0-1"]
[WhiteElo "1987"]
[BlackElo "2620"]
[TimeControl "180+2"]
[EndTime "12:40:21 PDT"]
[Termination "nijat_a won by checkmate"]

1. d4 {[%clk 0:02:51.9]} 1... Nf6 {[%clk 0:03:01.9]} 2. Bf4 {[%clk 0:02:45.5]}
2... e6 {[%clk 0:03:03.8]} 3. Nd2 {[%clk 0:02:40.1]} 3... c5 {[%clk 0:03:04.8]}
4. e3 {[%clk 0:02:37.6]} 4... Nc6 {[%clk 0:03:06.4]} 5. c3 {[%clk 0:02:31.1]}
5... d5 {[%clk 0:03:07.7]} 6. Ngf3 {[%clk 0:02:25.4]} 6... Be7 {[%clk
0:03:09.1]} 7. dxc5 {[%clk 0:02:21.8]} 7... Bxc5 {[%clk 0:03:10.3]} 8. Bd3
{[%clk 0:02:19.8]} 8... O-O {[%clk 0:03:11.1]} 9. O-O {[%clk 0:02:17.2]} 9...
Qe7 {[%clk 0:03:12.3]} 10. e4 {[%clk 0:02:13.1]} 10... dxe4 {[%clk 0:03:05.1]}
11. Nxe4 {[%clk 0:02:09.7]} 11... Nxe4 {[%clk 0:03:07]} 12. Bxe4 {[%clk
0:02:11.1]} 12... e5 {[%clk 0:03:08.9]} 13. Bd2 {[%clk 0:02:06.7]} 13... a5
{[%clk 0:03:01.5]} 14. Qa4 {[%clk 0:02:02.5]} 14... Bd7 {[%clk 0:03:02.2]} 15.
Qc2 {[%clk 0:01:57.7]} 15... f5 {[%clk 0:03:00.6]} 16. Bd5+ {[%clk 0:01:56.2]}
16... Kh8 {[%clk 0:03:02.3]} 17. Bg5 {[%clk 0:01:54.7]} 17... Qe8 {[%clk
0:03:04.1]} 18. Be3 {[%clk 0:01:49.2]} 18... Bxe3 {[%clk 0:03:05.2]} 19. fxe3
{[%clk 0:01:51.1]} 19... e4 {[%clk 0:03:06.1]} 20. Nd4 {[%clk 0:01:48.4]} 20...
Qe5 {[%clk 0:03:07.9]} 21. Bxc6 {[%clk 0:01:46.2]} 21... Bxc6 {[%clk 0:03:09.2]}
22. g3 {[%clk 0:01:33.7]} 22... Bb5 {[%clk 0:03:09]} 23. c4 {[%clk 0:01:32.2]}
23... Bd7 {[%clk 0:03:10.2]} 24. Rad1 {[%clk 0:01:29.4]} 24... Rac8 {[%clk
0:03:10.7]} 25. Qb3 {[%clk 0:01:25.2]} 25... Qb8 {[%clk 0:03:11.7]} 26. Nb5
{[%clk 0:01:20.9]} 26... Be6 {[%clk 0:03:11]} 27. Rd4 {[%clk 0:01:16.8]} 27...
Rc5 {[%clk 0:03:12.7]} 28. Qc3 {[%clk 0:01:13.1]} 28... Bxc4 {[%clk 0:03:09.4]}
29. Rxc4 {[%clk 0:01:13.6]} 29... Rxb5 {[%clk 0:03:10.8]} 30. Rc7 {[%clk
0:01:13.1]} 30... Rg8 {[%clk 0:03:10]} 31. Rd1 {[%clk 0:01:12.2]} 31... Qf8
{[%clk 0:03:02.1]} 32. Rdd7 {[%clk 0:01:09.1]} 32... b6 {[%clk 0:03:01.7]} 33.
Rxg7 {[%clk 0:01:02]} 33... Rxg7 {[%clk 0:02:59.2]} 34. Rc8 {[%clk 0:01:02.2]}
34... Qxc8 {[%clk 0:02:59.7]} 35. Qxc8+ {[%clk 0:01:03.1]} 35... Rg8 {[%clk
0:03:01.6]} 36. Qc4 {[%clk 0:00:58.7]} 36... Rc5 {[%clk 0:02:57.3]} 37. Qd4+
{[%clk 0:00:58.7]} 37... Rg7 {[%clk 0:02:58.9]} 38. Qd8+ {[%clk 0:00:58.4]}
38... Rg8 {[%clk 0:03:00.4]} 39. Qxb6 {[%clk 0:00:59.2]} 39... Rgc8 {[%clk
0:02:58.7]} 40. Qf6+ {[%clk 0:00:58.6]} 40... Kg8 {[%clk 0:03:00.3]} 41. Qe6+
{[%clk 0:00:59.9]} 41... Kf8 {[%clk 0:02:59.7]} 42. Qf6+ {[%clk 0:00:59.1]}
42... Ke8 {[%clk 0:03:00.2]} 43. Qe6+ {[%clk 0:01:00.2]} 43... Kf8 {[%clk
0:03:01.3]} 44. Qf6+ {[%clk 0:01:00.8]} 44... Kg8 {[%clk 0:03:02.8]} 45. Qe6+
{[%clk 0:00:57.5]} 45... Kg7 {[%clk 0:03:03.7]} 46. Qe7+ {[%clk 0:00:58.2]}
46... Kg6 {[%clk 0:03:04.4]} 47. Qe6+ {[%clk 0:00:59.5]} 47... Kg5 {[%clk
0:03:02.4]} 48. Qe7+ {[%clk 0:00:58.9]} 48... Kg4 {[%clk 0:03:01.3]} 49. Qh4+
{[%clk 0:00:59.6]} 49... Kf3 {[%clk 0:03:02.7]} 50. Qf4+ {[%clk 0:01:00.6]}
50... Ke2 {[%clk 0:03:04.2]} 51. Qf2+ {[%clk 0:01:02]} 51... Kd3 {[%clk
0:03:05.7]} 52. Qf1+ {[%clk 0:01:02.8]} 52... Kxe3 {[%clk 0:03:07]} 53. Qe1+
{[%clk 0:01:03.9]} 53... Kd4 {[%clk 0:03:06.9]} 54. Qd2+ {[%clk 0:01:04.9]}
54... Ke5 {[%clk 0:03:08.2]} 55. Qf4+ {[%clk 0:01:06.5]} 55... Ke6 {[%clk
0:03:09.7]} 56. Qh6+ {[%clk 0:01:07.6]} 56... Kd5 {[%clk 0:03:09.8]} 57. Qd2+
{[%clk 0:01:08.4]} 57... Kc6 {[%clk 0:03:07.6]} 58. Qh6+ {[%clk 0:01:09.7]}
58... Kb5 {[%clk 0:03:08.8]} 59. Qxh7 {[%clk 0:01:10.8]} 59... R8c7 {[%clk
0:03:05.3]} 60. Qg8 {[%clk 0:01:10.7]} 60... a4 {[%clk 0:03:01.3]} 61. Qb8+
{[%clk 0:01:09]} 61... Kc4 {[%clk 0:03:02.1]} 62. b3+ {[%clk 0:01:06.4]} 62...
Kd3 {[%clk 0:03:02.7]} 63. bxa4 {[%clk 0:01:06]} 63... Rc1+ {[%clk 0:03:02.6]}
64. Kg2 {[%clk 0:01:07.3]} 64... R1c2+ {[%clk 0:03:04.1]} 65. Kg1 {[%clk
0:01:08.6]} 65... Ke3 {[%clk 0:03:02.4]} 66. Qb6+ {[%clk 0:01:09]} 66... Kf3
{[%clk 0:03:01.3]} 67. Qb3+ {[%clk 0:01:09.3]} 67... R7c3 {[%clk 0:03:02.1]} 68.
h3 {[%clk 0:01:03.1]} 68... Rc1+ {[%clk 0:03:02.2]} 69. Kh2 {[%clk 0:01:04]}
69... Rxb3 {[%clk 0:03:03.7]} 70. axb3 {[%clk 0:00:43.4]} 70... e3 {[%clk
0:03:05.6]} 71. a5 {[%clk 0:00:43.2]} 71... e2 {[%clk 0:03:06.6]} 72. a6 {[%clk
0:00:45.1]} 72... e1=Q {[%clk 0:03:07.8]} 73. a7 {[%clk 0:00:47]} 73... Qh1#
{[%clk 0:03:09]} 0-1

[Event "*** Titled Tuesday 3|2 Blitz"]
[Site "Chess.com"]
[Date "2015.07.07"]
[Round "8"]
[White "alturas_pacificas"]
[Black "Dlugy"]
[Result "0-1"]
[WhiteElo "2096"]
[BlackElo "2558"]
[TimeControl "180+2"]
[EndTime "12:40:24 PDT"]
[Termination "Dlugy won by checkmate"]

1. d4 {[%clk 0:03:01.9]} 1... Nf6 {[%clk 0:03:01.1]} 2. Bf4 {[%clk 0:03:02.6]}
2... c5 {[%clk 0:03:00]} 3. c3 {[%clk 0:03:02]} 3... g6 {[%clk 0:02:59.4]} 4. e3
{[%clk 0:03:02.8]} 4... b6 {[%clk 0:02:56.1]} 5. Be2 {[%clk 0:03:02.2]} 5... Bb7
{[%clk 0:02:56.9]} 6. Bf3 {[%clk 0:03:03.7]} 6... Qc8 {[%clk 0:02:58.1]} 7. Bxb7
{[%clk 0:03:02.9]} 7... Qxb7 {[%clk 0:02:59.1]} 8. Qf3 {[%clk 0:03:04.4]} 8...
Qxf3 {[%clk 0:02:59.1]} 9. Nxf3 {[%clk 0:03:05.4]} 9... Bg7 {[%clk 0:02:59.4]}
10. Nbd2 {[%clk 0:03:02.5]} 10... Nc6 {[%clk 0:02:58.2]} 11. h3 {[%clk
0:03:02.5]} 11... O-O {[%clk 0:02:58.8]} 12. O-O {[%clk 0:03:03.2]} 12... d5
{[%clk 0:02:59.9]} 13. Ne5 {[%clk 0:03:01.3]} 13... Rfc8 {[%clk 0:03:00.8]} 14.
Nxc6 {[%clk 0:03:01.5]} 14... Rxc6 {[%clk 0:03:01.9]} 15. Rfd1 {[%clk
0:02:58.5]} 15... e6 {[%clk 0:03:02.3]} 16. Be5 {[%clk 0:02:58]} 16... Nd7
{[%clk 0:03:00.2]} 17. Bxg7 {[%clk 0:02:57.9]} 17... Kxg7 {[%clk 0:03:02.1]} 18.
Nf3 {[%clk 0:02:54.1]} 18... b5 {[%clk 0:03:02.4]} 19. Kf1 {[%clk 0:01:56.7]}
19... Rac8 {[%clk 0:02:57.1]} 20. Ke2 {[%clk 0:01:52.3]} 20... Nb6 {[%clk
0:02:47.1]} 21. b3 {[%clk 0:01:41.5]} 21... a5 {[%clk 0:02:34.8]} 22. Ne5 {[%clk
0:01:36.2]} 22... R6c7 {[%clk 0:02:36]} 23. Nd3 {[%clk 0:01:34.4]} 23... Nd7
{[%clk 0:02:34.7]} 24. Ne5 {[%clk 0:01:05.3]} 24... Nxe5 {[%clk 0:02:32.4]} 25.
dxe5 {[%clk 0:01:07.2]} 25... c4 {[%clk 0:02:32.2]} 26. b4 {[%clk 0:00:55]}
26... axb4 {[%clk 0:02:32.7]} 27. cxb4 {[%clk 0:00:56.9]} 27... Ra8 {[%clk
0:02:33.4]} 28. Rdb1 {[%clk 0:00:26.6]} 28... Ra3 {[%clk 0:02:34.3]} 29. Kd2
{[%clk 0:00:21.7]} 29... Rca7 {[%clk 0:02:34.1]} 30. f4 {[%clk 0:00:09.1]} 30...
Rxa2+ {[%clk 0:02:35.1]} 31. Rxa2 {[%clk 0:00:10.6]} 31... Rxa2+ {[%clk
0:02:35.9]} 32. Kc3 {[%clk 0:00:12.5]} 32... Rxg2 {[%clk 0:02:24]} 33. Kd4
{[%clk 0:00:13.4]} 33... Rg3 {[%clk 0:02:18.3]} 34. Kc5 {[%clk 0:00:09.7]} 34...
Rxe3 {[%clk 0:02:18.9]} 35. Kxb5 {[%clk 0:00:11.1]} 35... c3 {[%clk 0:02:19.2]}
36. Kc5 {[%clk 0:00:11.2]} 36... c2 {[%clk 0:02:19.2]} 37. Rc1 {[%clk
0:00:12.3]} 37... Rc3+ {[%clk 0:02:20.4]} 38. Kd4 {[%clk 0:00:10.7]} 38... Rc4+
{[%clk 0:02:21.2]} 39. Ke3 {[%clk 0:00:10.9]} 39... Rxb4 {[%clk 0:02:21.6]} 40.
Rxc2 {[%clk 0:00:12.2]} 40... Rb3+ {[%clk 0:02:22.8]} 41. Kd4 {[%clk 0:00:12.2]}
41... Rf3 {[%clk 0:02:21.3]} 42. Rc7 {[%clk 0:00:12.1]} 42... Rxf4+ {[%clk
0:02:22.3]} 43. Ke3 {[%clk 0:00:13.4]} 43... Re4+ {[%clk 0:02:22.9]} 44. Kf3
{[%clk 0:00:14.7]} 44... Rxe5 {[%clk 0:02:24]} 45. Kf4 {[%clk 0:00:15.9]} 45...
Re4+ {[%clk 0:02:24.4]} 46. Kg3 {[%clk 0:00:16.1]} 46... h5 {[%clk 0:02:25]} 47.
h4 {[%clk 0:00:16.9]} 47... Rg4+ {[%clk 0:02:25.9]} 48. Kh3 {[%clk 0:00:18]}
48... d4 {[%clk 0:02:27.2]} 49. Rd7 {[%clk 0:00:18.7]} 49... e5 {[%clk
0:02:28.5]} 50. Kh2 {[%clk 0:00:17.9]} 50... Kf6 {[%clk 0:02:29.4]} 51. Kh3
{[%clk 0:00:17.9]} 51... Ke6 {[%clk 0:02:30.7]} 52. Rd8 {[%clk 0:00:19.1]} 52...
Ke7 {[%clk 0:02:31.6]} 53. Rd5 {[%clk 0:00:19.1]} 53... f6 {[%clk 0:02:32.8]}
54. Ra5 {[%clk 0:00:19.3]} 54... d3 {[%clk 0:02:34.1]} 55. Ra2 {[%clk
0:00:17.9]} 55... Rd4 {[%clk 0:02:34.2]} 56. Rd2 {[%clk 0:00:13.6]} 56... e4
{[%clk 0:02:35.3]} 57. Kg2 {[%clk 0:00:14.5]} 57... e3 {[%clk 0:02:36.7]} 58.
Ra2 {[%clk 0:00:14.6]} 58... d2 {[%clk 0:02:37.8]} 59. Ra7+ {[%clk 0:00:15.2]}
59... Rd7 {[%clk 0:02:38.8]} 60. Ra3 {[%clk 0:00:12.4]} 60... d1=Q {[%clk
0:02:40]} 61. Rxe3+ {[%clk 0:00:13.2]} 61... Kf7 {[%clk 0:02:41.7]} 62. Kg3
{[%clk 0:00:11.5]} 62... Qg4+ {[%clk 0:02:42.5]} 63. Kf2 {[%clk 0:00:12.5]}
63... Rd2+ {[%clk 0:02:43.3]} 64. Kf1 {[%clk 0:00:13.1]} 64... Qg2+ {[%clk
0:02:44.4]} 65. Ke1 {[%clk 0:00:14.1]} 65... Qf2# {[%clk 0:02:46.3]} 0-1

[Event "*** Titled Tuesday 3|2 Blitz"]
[Site "Chess.com"]
[Date "2015.07.07"]
[Round "8"]
[White "Jahonas"]
[Black "Cryptochess"]
[Result "0-1"]
[WhiteElo "2123"]
[BlackElo "2370"]
[TimeControl "180+2"]
[EndTime "12:40:51 PDT"]
[Termination "Cryptochess won on time"]

1. d4 {[%clk 0:02:54.3]} 1... Nf6 {[%clk 0:03:00.2]} 2. Nf3 {[%clk 0:02:52.4]}
2... e6 {[%clk 0:03:00.7]} 3. g3 {[%clk 0:02:53.2]} 3... c5 {[%clk 0:02:59.4]}
4. Bg2 {[%clk 0:02:54.2]} 4... Nc6 {[%clk 0:02:58.7]} 5. O-O {[%clk 0:02:53.6]}
5... b6 {[%clk 0:02:56.8]} 6. dxc5 {[%clk 0:02:52.9]} 6... Bxc5 {[%clk
0:02:56.6]} 7. a3 {[%clk 0:02:53.4]} 7... a5 {[%clk 0:02:52]} 8. Nc3 {[%clk
0:02:50.9]} 8... O-O {[%clk 0:02:51.7]} 9. Bg5 {[%clk 0:02:48]} 9... d5 {[%clk
0:02:51.6]} 10. e4 {[%clk 0:02:47.5]} 10... d4 {[%clk 0:02:31.3]} 11. Nb5 {[%clk
0:02:38.9]} 11... e5 {[%clk 0:02:25.6]} 12. Re1 {[%clk 0:02:29.2]} 12... Ba6
{[%clk 0:02:25.5]} 13. Bf1 {[%clk 0:02:28]} 13... Be7 {[%clk 0:02:04.9]} 14. Bd3
{[%clk 0:02:22.8]} 14... h6 {[%clk 0:02:02.5]} 15. Bd2 {[%clk 0:02:19.3]} 15...
Nd7 {[%clk 0:01:53.4]} 16. Qe2 {[%clk 0:02:11.7]} 16... Nc5 {[%clk 0:01:53.3]}
17. a4 {[%clk 0:02:00.2]} 17... Qd7 {[%clk 0:01:53.2]} 18. Bc4 {[%clk
0:01:56.6]} 18... Rac8 {[%clk 0:01:53.7]} 19. b3 {[%clk 0:01:55.6]} 19... Kh8
{[%clk 0:01:50.4]} 20. Rf1 {[%clk 0:01:50.9]} 20... f5 {[%clk 0:01:45.5]} 21.
exf5 {[%clk 0:01:49]} 21... Qxf5 {[%clk 0:01:40]} 22. Ne1 {[%clk 0:01:05.1]}
22... e4 {[%clk 0:01:40.5]} 23. Rd1 {[%clk 0:00:48.3]} 23... Bxb5 {[%clk
0:01:35.1]} 24. Bxb5 {[%clk 0:00:45.9]} 24... Ne5 {[%clk 0:01:36.6]} 25. Bf4
{[%clk 0:00:34.4]} 25... Ng6 {[%clk 0:01:20.8]} 26. Rxd4 {[%clk 0:00:31.8]}
26... Nxf4 {[%clk 0:01:21.1]} 27. gxf4 {[%clk 0:00:32.8]} 27... Bf6 {[%clk
0:01:15]} 28. Rc4 {[%clk 0:00:32.1]} 28... Qxf4 {[%clk 0:01:12.6]} 29. f3 {[%clk
0:00:32.4]} 29... Be5 {[%clk 0:00:59.4]} 30. fxe4 {[%clk 0:00:29.4]} 30... Qg5+
{[%clk 0:01:00.3]} 31. Qg2 {[%clk 0:00:27.9]} 31... Qe3+ {[%clk 0:00:58.9]} 32.
Kh1 {[%clk 0:00:27]} 32... Rxf1+ {[%clk 0:00:47.3]} 33. Qxf1 {[%clk 0:00:27.3]}
33... Rd8 {[%clk 0:00:48.9]} 34. Nd3 {[%clk 0:00:26.6]} 34... Nxd3 {[%clk
0:00:30]} 35. cxd3 {[%clk 0:00:26.4]} 35... Qd2 {[%clk 0:00:30.5]} 36. Qg2
{[%clk 0:00:20.3]} 36... Qd1+ {[%clk 0:00:25.3]} 37. Qg1 {[%clk 0:00:20.6]}
37... Qf3+ {[%clk 0:00:26.4]} 38. Qg2 {[%clk 0:00:21.7]} 38... Qxd3 {[%clk
0:00:26.6]} 39. Rc1 {[%clk 0:00:20.9]} 39... Qe3 {[%clk 0:00:22.7]} 40. Rf1
{[%clk 0:00:17.5]} 40... Rd2 {[%clk 0:00:18.5]} 0-1

[Event "*** Titled Tuesday 3|2 Blitz"]
[Site "Chess.com"]
[Date "2015.07.07"]
[Round "8"]
[White "GMHess"]
[Black "Ginger_GM"]
[Result "1-0"]
[WhiteElo "2538"]
[BlackElo "2396"]
[TimeControl "180+2"]
[EndTime "12:41:15 PDT"]
[Termination "GMHess won by resignation"]

1. c4 {[%clk 0:03:01.9]} 1... f5 {[%clk 0:02:59.8]} 2. Nc3 {[%clk 0:03:02.6]}
2... Nf6 {[%clk 0:03:00.6]} 3. g3 {[%clk 0:03:03.8]} 3... e6 {[%clk 0:03:01.3]}
4. Bg2 {[%clk 0:03:05.4]} 4... Be7 {[%clk 0:03:02.6]} 5. Nh3 {[%clk 0:03:06.3]}
5... O-O {[%clk 0:03:02.8]} 6. O-O {[%clk 0:03:07.6]} 6... d6 {[%clk 0:03:03.8]}
7. d4 {[%clk 0:03:07.9]} 7... c6 {[%clk 0:03:03.8]} 8. b3 {[%clk 0:03:03.6]}
8... e5 {[%clk 0:03:04.2]} 9. d5 {[%clk 0:02:57.2]} 9... h6 {[%clk 0:02:53]} 10.
dxc6 {[%clk 0:02:44.3]} 10... bxc6 {[%clk 0:02:48.1]} 11. f4 {[%clk 0:02:17]}
11... e4 {[%clk 0:02:44.2]} 12. Ba3 {[%clk 0:02:09.8]} 12... Qa5 {[%clk
0:02:40.5]} 13. Qc1 {[%clk 0:02:07.4]} 13... Ng4 {[%clk 0:02:22.4]} 14. Nf2
{[%clk 0:01:52.7]} 14... Nxf2 {[%clk 0:02:06.9]} 15. Rxf2 {[%clk 0:01:53.4]}
15... Na6 {[%clk 0:02:07.3]} 16. e3 {[%clk 0:01:46]} 16... Be6 {[%clk
0:01:55.7]} 17. Ne2 {[%clk 0:01:40.4]} 17... Nb4 {[%clk 0:01:43]} 18. Nd4 {[%clk
0:01:23.7]} 18... Nd3 {[%clk 0:01:37.7]} 19. Nxc6 {[%clk 0:01:24.6]} 19... Qc7
{[%clk 0:01:34.3]} 20. Nxe7+ {[%clk 0:01:23]} 20... Qxe7 {[%clk 0:01:35.5]} 21.
Qd2 {[%clk 0:01:11.4]} 21... Nxf2 {[%clk 0:01:36]} 22. Kxf2 {[%clk 0:01:13.3]}
22... Rfd8 {[%clk 0:01:36.2]} 23. Rd1 {[%clk 0:01:11.7]} 23... Qf7 {[%clk
0:01:21.4]} 24. Bxd6 {[%clk 0:01:08]} 24... a5 {[%clk 0:01:22.3]} 25. c5 {[%clk
0:00:54.7]} 25... a4 {[%clk 0:01:22.8]} 26. b4 {[%clk 0:00:43.7]} 26... Bxa2
{[%clk 0:01:22.7]} 27. b5 {[%clk 0:00:43.9]} 27... a3 {[%clk 0:01:20.4]} 28. Ra1
{[%clk 0:00:39.4]} 28... Bc4 {[%clk 0:01:06.7]} 29. Qb4 {[%clk 0:00:37.7]} 29...
a2 {[%clk 0:01:05.3]} 30. b6 {[%clk 0:00:36.7]} 30... Bd5 {[%clk 0:00:47.3]} 31.
Bf1 {[%clk 0:00:32.9]} 31... Qh5 {[%clk 0:00:39.2]} 32. Kg1 {[%clk 0:00:33.1]}
32... Qf3 {[%clk 0:00:39.4]} 33. Qd2 {[%clk 0:00:31]} 33... Ra3 {[%clk
0:00:39.4]} 34. Qxd5+ {[%clk 0:00:25.3]} 34... Kh8 {[%clk 0:00:39.4]} 35. Qd2
{[%clk 0:00:23.1]} 35... Rxe3 {[%clk 0:00:28]} 36. Qf2 {[%clk 0:00:07.1]} 36...
Ra3 {[%clk 0:00:20.8]} 37. Qxf3 {[%clk 0:00:07.6]} 37... exf3 {[%clk 0:00:22.7]}
38. Bc4 {[%clk 0:00:06.9]} 38... Re8 {[%clk 0:00:21.7]} 39. Rxa2 {[%clk
0:00:06.3]} 39... Rc3 {[%clk 0:00:22.5]} 40. b7 {[%clk 0:00:05.5]} 40... Rxc4
{[%clk 0:00:20.3]} 41. Ra8 {[%clk 0:00:06.3]} 41... Re4 {[%clk 0:00:14.6]} 1-0

[Event "*** Titled Tuesday 3|2 Blitz"]
[Site "Chess.com"]
[Date "2015.07.07"]
[Round "8"]
[White "PauloCesarCosta"]
[Black "MFBerna"]
[Result "0-1"]
[WhiteElo "2012"]
[BlackElo "2136"]
[TimeControl "180+2"]
[EndTime "12:41:32 PDT"]
[Termination "MFBerna won on time"]

1. Nf3 {[%clk 0:03:01.9]} 1... Nf6 {[%clk 0:02:25.7]} 2. c4 {[%clk 0:03:01.9]}
2... e6 {[%clk 0:02:22.8]} 3. d4 {[%clk 0:03:00.5]} 3... Bb4+ {[%clk 0:02:21.9]}
4. Bd2 {[%clk 0:02:58.6]} 4... Qe7 {[%clk 0:02:21.6]} 5. a3 {[%clk 0:02:57.6]}
5... Bxd2+ {[%clk 0:02:20.9]} 6. Qxd2 {[%clk 0:02:55.8]} 6... b6 {[%clk
0:02:20.8]} 7. g3 {[%clk 0:02:56.1]} 7... Ba6 {[%clk 0:02:17.2]} 8. Bg2 {[%clk
0:02:52]} 8... c6 {[%clk 0:01:55.7]} 9. Qc2 {[%clk 0:02:33.1]} 9... d5 {[%clk
0:01:56.4]} 10. Nbd2 {[%clk 0:02:25.5]} 10... O-O {[%clk 0:01:56]} 11. O-O
{[%clk 0:02:23.5]} 11... Nbd7 {[%clk 0:01:55.1]} 12. Rac1 {[%clk 0:02:20.3]}
12... c5 {[%clk 0:01:49.6]} 13. cxd5 {[%clk 0:01:50.9]} 13... exd5 {[%clk
0:01:48.8]} 14. Rfe1 {[%clk 0:01:46.3]} 14... Rfe8 {[%clk 0:01:35.4]} 15. e3
{[%clk 0:01:42.5]} 15... Qd6 {[%clk 0:01:22.4]} 16. dxc5 {[%clk 0:01:36.7]}
16... bxc5 {[%clk 0:01:08.9]} 17. Nb3 {[%clk 0:01:22.9]} 17... Rec8 {[%clk
0:00:55.4]} 18. Red1 {[%clk 0:01:22.8]} 18... Qb6 {[%clk 0:00:46.5]} 19. Nbd2
{[%clk 0:01:12.5]} 19... Rab8 {[%clk 0:00:46.1]} 20. b3 {[%clk 0:01:06.8]} 20...
Qa5 {[%clk 0:00:43.4]} 21. a4 {[%clk 0:01:04.4]} 21... g6 {[%clk 0:00:32.1]} 22.
Qc3 {[%clk 0:00:58]} 22... Qb6 {[%clk 0:00:28.5]} 23. Ne5 {[%clk 0:00:46.2]}
23... Nxe5 {[%clk 0:00:20.9]} 24. Qxe5 {[%clk 0:00:46.5]} 24... Re8 {[%clk
0:00:15.9]} 25. Qc3 {[%clk 0:00:39.4]} 25... Rbc8 {[%clk 0:00:16.1]} 26. Bf1
{[%clk 0:00:34.6]} 26... Bb7 {[%clk 0:00:16.3]} 27. h3 {[%clk 0:00:16.4]} 27...
Nh5 {[%clk 0:00:13.4]} 28. Bb5 {[%clk 0:00:10.7]} 28... Red8 {[%clk 0:00:12.8]}
29. Be2 {[%clk 0:00:11.4]} 29... Ng7 {[%clk 0:00:12.4]} 30. Bf3 {[%clk
0:00:11.1]} 30... Ne6 {[%clk 0:00:13]} 31. Bg2 {[%clk 0:00:08.5]} 31... d4
{[%clk 0:00:13.6]} 32. exd4 {[%clk 0:00:08]} 32... cxd4 {[%clk 0:00:15.2]} 33.
Qa1 {[%clk 0:00:08]} 33... Bxg2 {[%clk 0:00:14.3]} 34. Kxg2 {[%clk 0:00:09]}
34... d3 {[%clk 0:00:14.2]} 35. Rxc8 {[%clk 0:00:08.9]} 35... Rxc8 {[%clk
0:00:16.1]} 36. Rc1 {[%clk 0:00:07.8]} 36... Qb7+ {[%clk 0:00:17.3]} 37. Kg1
{[%clk 0:00:07.8]} 37... Rd8 {[%clk 0:00:18.3]} 38. Qc3 {[%clk 0:00:06.7]} 38...
Qd5 {[%clk 0:00:17.2]} 39. Qc4 {[%clk 0:00:06]} 39... Qb7 {[%clk 0:00:16.3]} 40.
Qc6 {[%clk 0:00:05.7]} 40... Qb4 {[%clk 0:00:15.1]} 41. Qc3 {[%clk 0:00:05.7]}
41... Qe7 {[%clk 0:00:13.1]} 42. Qc6 {[%clk 0:00:03.7]} 42... Ng5 {[%clk
0:00:13.2]} 43. Qc3 {[%clk 0:00:03.2]} 43... Nxh3+ {[%clk 0:00:13.9]} 44. Kh2
{[%clk 0:00:03.7]} 44... Nxf2 {[%clk 0:00:14.8]} 0-1